bitfinex/quotes_SOLUSD_20250414
["timestamp","ask_amount","ask_price","bid_price","bid_amount"]
[1744599010585,26.70974261,134.48,134.44,0.063]
[1744599011798,14.8698,134.5,134.44,0.063]
[1744599011986,26.70974261,134.49,134.44,0.063]
[1744599012189,26.85190418,134.45,134.44,0.0001]
[1744599012391,19.07613357,134.44,134.4,0.063]
[1744599012580,20.8192,134.49,134.4,0.063]
[1744599012896,0.42648471,134.48,134.41,26.70974261]
[1744599013099,26.70974261,134.47,134.41,26.70974261]
[1744599013699,26.70974261,134.45,134.4,0.063]
[1744599013898,5.9506,134.44,134.4,0.063]
[1744599014101,5.9506,134.44,134.4,26.77274261]
[1744599014485,5.9506,134.44,134.4,0.063]
[1744599014686,32.66034261,134.44,134.4,0.063]
[1744599015003,26.70974261,134.42,134.4,0.063]
[1744599015202,26.70974261,134.41,134.4,0.063]
[1744599015778,45.78587618,134.41,134.4,0.063]
[1744599016089,0.42648471,134.39,134.36,0.063]
[1744599016313,39.48284886,134.4,134.35,0.0001]
[1744599016314,0.14216157,134.36,134.35,0.0001]
[1744599016481,45.78587618,134.36,134.32,0.063]
[1744599016689,0.42648471,134.36,134.32,0.063]
[1744599016898,26.70974261,134.33,134.32,0.063]
[1744599017603,26.70974261,134.36,134.32,0.063]
[1744599017783,47.82726575,134.4,134.32,0.063]
[1744599017784,26.70974261,134.38,134.32,0.063]
[1744599017980,5.9537,134.37,134.32,26.77274261]
[1744599018198,5.9537,134.37,134.32,0.063]
[1744599018498,32.66344261,134.37,134.32,0.063]
[1744599019123,5.9532,134.38,134.32,26.77274261]
[1744599019296,26.70974261,134.37,134.32,0.063]
[1744599019501,26.70974261,134.34,134.32,0.063]
[1744599019997,0.14216157,134.37,134.32,0.063]
[1744599019998,26.70974261,134.33,134.32,0.063]
[1744599021008,26.70974261,134.36,134.32,0.063]
[1744599021488,9.1,134.4,134.32,0.063]
[1744599021683,5.9529,134.39,134.32,26.77274261]
[1744599021881,26.70974261,134.37,134.32,26.77274261]
[1744599022591,26.70974261,134.35,134.32,0.063]
[1744599022799,26.70974261,134.34,134.32,0.063]
[1744599023191,26.70974261,134.35,134.32,0.063]
[1744599023392,14.882,134.39,134.32,0.063]
[1744599023393,5.9528,134.39,134.33,26.70974261]
[1744599023600,26.70974261,134.38,134.33,26.70974261]
[1744599023911,5.9528,134.39,134.32,26.77274261]
[1744599024108,26.70974261,134.38,134.32,26.77274261]
[1744599024405,26.70974261,134.37,134.32,26.77274261]
[1744599024711,26.70974261,134.37,134.27,0.063]
[1744599024712,26.70974261,134.33,134.27,0.063]
[1744599024882,5.9539,134.37,134.24,0.063]
[1744599024883,26.70974261,134.28,134.24,0.063]
[1744599025083,26.70974261,134.25,134.24,0.063]
[1744599025311,26.70974261,134.26,134.24,0.063]
[1744599025513,26.70974261,134.28,134.24,0.063]
[1744599025719,26.70974261,134.27,134.24,0.063]
[1744599025879,26.70974261,134.26,134.24,0.063]
[1744599026085,26.70974261,134.25,134.24,0.063]
[1744599026407,27.13622732,134.25,134.24,0.063]
[1744599026704,26.70974261,134.27,134.24,0.063]
[1744599026926,0.14216157,134.32,134.21,0.063]
[1744599027089,26.70974261,134.24,134.21,0.063]
[1744599027309,26.70974261,134.22,134.21,0.063]
[1744599027605,26.70974261,134.23,134.21,0.063]
[1744599028181,26.70974261,134.22,134.21,0.063]
[1744599028703,26.0,134.28,134.21,0.063]
[1744599028904,26.70974261,134.26,134.21,0.063]
[1744599029093,26.70974261,134.28,134.22,26.70974261]
[1744599029284,26.70974261,134.25,134.21,0.063]
[1744599029609,26.70974261,134.22,134.21,0.063]
[1744599029777,26.70974261,134.23,134.21,0.063]
[1744599030294,0.28432314,134.24,134.21,0.063]
[1744599030295,26.70974261,134.22,134.21,0.063]
[1744599030685,32.66914261,134.24,134.21,0.063]
[1744599030891,5.9581,134.27,134.22,26.70974261]
[1744599031096,6.3027,134.38,134.26,33.23534261]
[1744599031301,26.70974261,134.33,134.28,26.70974261]
[1744599032012,26.70974261,134.35,134.3,26.70974261]
[1744599032309,14.8842,134.37,134.28,26.70974261]
[1744599032482,26.70974261,134.33,134.28,26.70974261]
[1744599032685,5.9558,134.33,134.28,26.70974261]
[1744599033086,5.9558,134.33,134.25,18.64964886]
[1744599033297,26.70974261,134.31,134.25,26.70974261]
[1744599033507,26.70974261,134.29,134.24,1.5128]
[1744599033711,5.9558,134.33,134.26,26.70974261]
[1744599033891,14.8864,134.36,134.29,26.70974261]
[1744599034093,26.70974261,134.34,134.29,26.70974261]
[1744599034302,26.70974261,134.33,134.28,26.70974261]
[1744599034710,5.9557,134.33,134.28,26.70974261]
[1744599035011,26.0,134.36,134.31,33.03904261]
[1744599035213,0.14216157,134.33,134.26,6.3293]
[1744599035507,0.14216157,134.26,134.21,6.3923]
[1744599035815,26.70974261,134.23,134.21,0.063]
[1744599036115,26.70974261,134.26,134.21,0.063]
[1744599036289,26.70974261,134.24,134.21,0.063]
[1744599036488,26.70974261,134.22,134.21,0.063]
[1744599036715,5.9603,134.22,134.21,0.063]
[1744599037211,26.70974261,134.26,134.21,26.77274261]
[1744599037424,26.70974261,134.26,134.21,0.063]
[1744599037425,0.28432314,134.25,134.21,0.063]
[1744599037608,32.66784261,134.27,134.22,26.70974261]
[1744599037918,26.70974261,134.26,134.21,26.77274261]
[1744599038085,26.0,134.23,134.21,0.063]
[1744599038285,45.78587618,134.25,134.21,0.063]
[1744599038286,26.70974261,134.22,134.21,0.063]
[1744599038592,53.13622732,134.22,134.21,0.063]
[1744599038791,53.13622732,134.22,134.19,0.063]
[1744599038792,50.75301043,134.2,134.19,0.063]
[1744599038998,32.67094261,134.2,134.19,0.063]
[1744599039816,33.09742732,134.2,134.19,0.063]
[1744599040115,51.74707618,134.2,134.19,0.063]
[1744599040328,26.14216157,134.12,134.11,0.063]
[1744599040487,0.42648471,134.1,134.0,1.5064]
[1744599040693,59.10272732,134.08,134.0,7.8357]
[1744599040917,77.75237618,134.08,134.0,7.8357]
[1744599041428,26.0,134.04,134.0,6.3293]
[1744599041586,26.70974261,134.01,134.0,6.3293]
[1744599042104,26.70974261,134.01,133.97,9.1]
[1744599042301,0.14216157,134.04,133.89,6.3293]
[1744599042620,26.70974261,133.98,133.92,26.70974261]
[1744599042936,26.70974261,133.93,133.89,6.3293]
[1744599043094,26.70974261,133.9,133.83,33.03904261]
[1744599043294,26.70974261,133.86,133.83,6.3293]
[1744599043508,26.70974261,133.89,133.84,26.70974261]
[1744599043919,26.70974261,133.9,133.84,26.70974261]
[1744599044111,26.70974261,133.88,133.83,6.3293]
[1744599044309,26.0,133.93,133.86,26.70974261]
[1744599044504,26.70974261,133.92,133.86,26.70974261]
[1744599044706,26.0,133.93,133.89,26.70974261]
[1744599044707,5.9733,133.93,133.89,26.70974261]
[1744599044915,27.13622732,133.95,133.89,26.70974261]
[1744599045109,27.13622732,133.95,133.87,26.70974261]
[1744599045110,26.70974261,133.92,133.87,26.70974261]
[1744599045311,26.70974261,133.89,133.85,2.5490858]
[1744599045531,26.70974261,133.91,133.86,26.70974261]
[1744599045713,26.70974261,133.91,133.85,29.25882841]
[1744599046038,0.28432314,133.93,133.85,2.5490858]
[1744599046342,0.42648471,133.93,133.86,26.70974261]
[1744599046632,0.42648471,133.93,133.83,6.3293]
[1744599046633,26.70974261,133.87,133.83,6.3293]
[1744599046927,5.9752,133.89,133.84,26.70974261]
[1744599047118,32.68494261,133.89,133.84,26.70974261]
[1744599047321,32.68424261,133.91,133.86,26.70974261]
[1744599047618,33.68414261,133.91,133.85,26.70974261]
[1744599047829,118.79362695,133.92,133.88,26.70974261]
[1744599048092,103.94442359,133.92,133.89,26.70974261]
[1744599048225,103.94442359,133.92,133.9,26.70974261]
[1744599048545,103.94442359,133.92,133.88,26.70974261]
[1744599048838,109.91822359,133.92,133.87,26.70974261]
[1744599049212,118.78102017,133.91,133.87,26.70974261]
[1744599049427,102.11462017,133.91,133.9,0.42648471]
[1744599049637,43.22615225,134.02,133.91,0.42648471]
[1744599049821,0.9999,134.01,133.96,26.70974261]
[1744599050022,22.42274279,133.97,133.96,26.70974261]
[1744599050823,22.45274279,133.97,133.96,32.68164261]
[1744599051233,22.45274279,133.97,133.96,26.70974261]
[1744599052513,0.03,133.97,133.96,26.70974261]
[1744599052835,0.03,133.97,133.96,32.68164261]
[1744599054121,0.03,133.97,133.96,26.70974261]
[1744599054331,0.03,133.97,133.94,26.70974261]
[1744599054831,0.03,133.97,133.95,26.70974261]
[1744599055035,0.03,133.97,133.96,32.68164261]
[1744599055215,0.03,133.97,133.96,26.70974261]
[1744599056938,0.03,133.97,133.96,32.68164261]
[1744599058240,0.03,133.97,133.96,26.70974261]
[1744599059248,0.03,133.97,133.93,5.9732]
[1744599059435,0.03,133.97,133.93,32.68294261]
[1744599059621,0.03,133.97,133.94,26.70974261]
[1744599059817,0.03,133.97,133.95,26.70974261]
[1744599060019,0.03,133.97,133.96,45.50155304]
[1744599060227,0.9999,134.11,134.01,0.14216157]
[1744599060539,0.9999,134.11,133.97,18.79181043]
[1744599060540,27.70964261,134.07,134.02,35.80974261]
[1744599060715,27.70964261,134.05,133.99,26.70974261]
[1744599060923,27.70964261,134.02,133.97,35.80974261]
[1744599061121,27.70964261,133.98,133.92,9.1]
[1744599061445,26.70974261,133.96,133.92,9.1]
[1744599062122,27.70964261,134.0,133.94,26.70974261]
[1744599062425,0.9999,134.01,133.97,26.70974261]
[1744599062634,18.64964886,134.0,133.95,26.70974261]
[1744599062833,0.9999,133.98,133.94,26.70974261]
[1744599063130,45.35939147,134.0,133.94,32.68254261]
[1744599063333,0.9999,133.99,133.96,26.70974261]
[1744599063530,0.9999,133.99,133.95,26.70974261]
[1744599063730,0.9999,133.99,133.94,5.9728]
[1744599063945,0.9999,133.99,133.95,26.70974261]
[1744599064148,26.70974261,134.02,133.97,26.70974261]
[1744599064328,0.9999,134.03,133.99,26.70974261]
[1744599064525,0.9999,134.02,133.98,26.70974261]
[1744599064727,0.9999,134.01,133.97,26.70974261]
[1744599065142,27.70964261,134.02,133.97,26.70974261]
[1744599065652,27.70964261,133.99,133.94,32.68244261]
[1744599065841,0.9999,133.98,133.94,5.9727]
[1744599066145,18.64964886,134.04,133.97,26.70974261]
[1744599066447,18.64964886,134.04,134.01,26.70974261]
[1744599066744,19.64954886,134.04,133.98,9.1]
[1744599067057,26.70974261,134.05,133.99,26.70974261]
[1744599067343,32.67764261,134.05,134.0,26.70974261]
[1744599067544,27.70964261,134.04,133.99,32.68024261]
[1744599067745,19.64954886,134.07,134.02,26.70974261]
[1744599067950,46.35929147,134.07,134.02,26.70974261]
[1744599068130,46.35929147,134.07,134.01,26.70974261]
[1744599068318,27.70964261,134.04,133.99,26.70974261]
[1744599068654,27.70964261,134.02,133.98,9.1]
[1744599068947,0.9999,134.02,133.98,9.1]
[1744599069141,0.9999,134.04,133.98,15.071]
[1744599069355,0.9999,134.03,133.99,26.70974261]
[1744599069525,0.9999,134.06,133.99,26.70974261]
[1744599069731,0.9999,134.04,134.0,26.70974261]
[1744599069963,26.70974261,134.03,133.98,9.1]
[1744599070246,26.70974261,134.03,133.98,15.071]
[1744599070755,27.70964261,134.03,133.98,9.1]
[1744599071255,26.70974261,134.05,133.99,32.68014261]
[1744599071444,27.70964261,134.02,133.98,9.1]
[1744599071771,26.70974261,134.02,133.98,9.1]
[1744599072070,45.35939147,134.01,133.91,14.9349]
[1744599072245,26.70974261,133.99,133.93,35.80974261]
[1744599072561,1.42638471,134.02,133.95,26.70974261]
[1744599072723,26.70974261,134.02,133.97,26.70974261]
[1744599072926,46.35929147,134.04,133.98,26.70974261]
[1744599073127,27.70964261,134.01,133.96,26.70974261]
[1744599073355,26.70974261,134.02,133.97,32.68114261]
[1744599073570,27.70964261,134.02,133.97,35.30488868]
[1744599073857,26.70974261,134.02,133.97,35.30488868]
[1744599074069,27.70964261,134.02,133.97,35.30488868]
[1744599074232,27.70964261,134.02,133.97,32.68114261]
[1744599074560,0.9999,133.99,133.93,9.1]
[1744599074770,5.9695,134.02,133.97,26.70974261]
[1744599074771,0.9999,134.02,133.97,26.70974261]
[1744599074932,33.67834261,134.04,133.98,26.70974261]
[1744599075263,0.9999,134.02,133.94,21.41730802]
[1744599075427,0.9999,134.02,133.97,26.70974261]
[1744599076549,0.9999,134.03,133.98,29.33550081]
[1744599076949,0.9999,134.04,133.99,26.70974261]
[1744599077251,0.9999,134.06,134.01,26.70974261]
[1744599077550,26.70974261,134.03,134.0,2.6257582]
[1744599077784,27.70964261,134.03,134.0,2.6257582]
[1744599078452,27.70964261,134.03,133.98,5.9708]
[1744599078848,26.70974261,134.03,133.98,5.9708]
[1744599079052,33.67674261,134.07,134.01,26.70974261]
[1744599079252,27.70964261,134.06,134.0,26.70974261]
[1744599079431,33.67724261,134.06,134.01,5.9697]
[1744599079744,27.70964261,134.06,134.0,32.67964261]
[1744599080344,0.9999,134.06,134.01,26.70974261]
[1744599080556,0.9999,134.05,134.01,26.70974261]
[1744599080760,0.9999,134.05,134.0,32.67964261]
[1744599081654,26.70974261,134.02,133.95,9.1]
[1744599081857,19.64954886,134.01,133.95,15.0722]
[1744599082042,27.70964261,134.0,133.95,15.0722]
[1744599082356,27.70964261,134.01,133.96,2.62476897]
[1744599082545,0.9999,134.0,133.96,29.33451158]
[1744599082740,26.70974261,133.97,133.96,2.62476897]
[1744599083043,46.35929147,133.97,133.96,2.62476897]
[1744599083247,0.42648471,133.95,133.88,9.1]
[1744599083448,27.70964261,133.89,133.86,0.063]
[1744599083639,26.70974261,133.88,133.86,0.063]
[1744599083952,45.50155304,133.93,133.87,26.70974261]
[1744599084158,27.28422314,133.94,133.88,26.70974261]
[1744599084159,26.70974261,133.94,133.88,26.70974261]
[1744599084342,27.70964261,133.95,133.89,26.70974261]
[1744599084529,0.9999,133.97,133.92,26.70974261]
[1744599084732,1.5778,133.98,133.94,26.70974261]
[1744599084982,7.1139,134.0,133.94,26.70974261]
[1744599085148,18.64964886,134.01,133.97,26.70974261]
[1744599085344,0.9999,134.0,133.96,26.70974261]
[1744599085737,0.9999,134.0,133.95,26.70974261]
[1744599085931,0.9999,134.0,133.97,26.70974261]
[1744599086163,0.9999,133.99,133.93,20.9063]
[1744599086370,0.9999,134.02,133.98,26.70974261]
[1744599086539,2.5777,134.03,133.98,26.70974261]
[1744599086856,0.9999,134.03,134.0,26.70974261]
[1744599087158,0.9999,134.03,133.99,26.70974261]
[1744599087368,0.9999,134.01,133.98,9.1]
[1744599087539,0.9999,134.02,133.98,15.0708]
[1744599087738,0.9999,134.01,133.98,9.1]
[1744599087962,0.9999,134.01,133.98,15.0708]
[1744599088353,27.70964261,134.04,133.99,26.70974261]
[1744599088661,0.9999,134.02,133.99,26.70974261]
[1744599088856,0.9999,134.02,134.0,26.70974261]
[1744599089052,27.70964261,134.05,133.99,26.70974261]
[1744599089238,0.9999,134.04,133.99,26.70974261]
[1744599089455,26.70974261,134.05,134.0,5.9701]
[1744599089650,0.9999,134.03,134.0,5.9701]
[1744599092474,0.9999,134.05,134.0,32.67984261]
[1744599092638,27.70964261,134.05,134.0,32.67984261]
[1744599093139,19.28938409,134.03,133.98,15.071]
[1744599093466,19.28938409,133.99,133.93,33.36268409]
[1744599093768,19.28938409,133.99,133.91,0.063]
[1744599093769,0.9999,133.93,133.91,0.063]
[1744599093968,37.93903295,133.92,133.91,0.063]
[1744599094260,0.9999,133.87,133.83,9.163]
[1744599094431,0.9999,133.87,133.83,0.063]
[1744599094836,0.9999,133.87,133.83,6.0406]
[1744599095059,19.28938409,133.87,133.83,0.063]
[1744599095365,0.9999,133.87,133.83,18.35248409]
[1744599095548,0.9999,133.87,133.83,24.33008409]
[1744599096167,0.9999,133.87,133.84,18.28948409]
[1744599096372,0.9999,133.89,133.87,5.9759]
[1744599096663,0.9999,133.89,133.88,18.28948409]
[1744599096836,0.9999,133.89,133.86,0.063]
[1744599097041,0.9999,133.87,133.86,0.063]
[1744599097238,19.64954886,133.87,133.86,0.063]
[1744599098449,6.9758,133.87,133.86,0.063]
[1744599098660,19.64954886,133.87,133.86,0.063]
[1744599098977,0.9999,133.88,133.86,27.14678176]
[1744599099144,0.9999,133.89,133.87,27.08378176]
[1744599099775,0.9999,133.9,133.88,27.08378176]
[1744599101555,0.9999,133.9,133.88,33.05918176]
[1744599102282,0.9999,133.92,133.89,27.08378176]
[1744599102569,0.9999,133.94,133.91,27.08378176]
[1744599103068,0.9999,133.91,133.87,5.9758]
[1744599103446,0.9999,133.89,133.86,0.063]
[1744599103646,0.9999,133.91,133.87,27.08378176]
[1744599103857,0.9999,133.92,133.89,27.08378176]
[1744599104061,0.9999,133.93,133.91,27.08378176]
[1744599104268,0.9999,133.94,133.91,27.08378176]
[1744599104455,19.64954886,133.95,133.91,27.08378176]
[1744599104657,0.9999,133.93,133.91,27.08378176]
[1744599104862,0.9999,133.93,133.9,33.05828176]
[1744599105054,24.62204886,133.95,133.9,33.05828176]
[1744599105055,0.9999,133.95,133.92,27.08378176]
[1744599105257,0.9999,133.95,133.93,27.08378176]
[1744599105550,18.64964886,133.92,133.89,27.08378176]
[1744599105756,0.9999,133.89,133.86,0.063]
[1744599105953,0.9999,133.87,133.86,0.063]
[1744599108169,47.15981533,133.87,133.86,0.063]
[1744599108359,19.64954886,133.87,133.86,0.063]
[1744599108675,0.9999,133.87,133.86,0.063]
[1744599109346,53.13571533,133.87,133.86,0.063]
[1744599109765,53.13571533,133.87,133.83,0.063]
[1744599109766,0.9999,133.84,133.83,0.063]
[1744599109974,28.51016647,133.84,133.83,0.063]
[1744599110160,1.42638471,133.84,133.83,0.063]
[1744599110382,34.48736647,133.84,133.83,0.063]
[1744599110870,53.13701533,133.84,133.83,0.063]
[1744599111083,19.64954886,133.84,133.83,0.063]
[1744599111378,0.9999,133.84,133.83,0.063]
[1744599112269,1.42638471,133.84,133.83,0.063]
[1744599112483,53.13701533,133.84,133.83,0.063]
[1744599112664,52.71053062,133.84,133.83,0.063]
[1744599112882,25.62674886,133.84,133.83,0.063]
[1744599113170,0.9999,133.84,133.83,0.063]
[1744599113374,0.9999,133.84,133.83,27.14678176]
[1744599113548,0.9999,133.84,133.83,0.063]
[1744599113970,47.15981533,133.84,133.83,0.063]
[1744599114381,53.13701533,133.84,133.83,0.063]
[1744599116273,0.9999,133.79,133.78,0.063]
[1744599116460,47.15981533,133.79,133.78,0.063]
[1744599116646,0.9999,133.81,133.78,33.12658176]
[1744599116874,0.9999,133.81,133.79,27.08378176]
[1744599117045,0.9999,133.8,133.79,27.08378176]
[1744599117252,0.9999,133.81,133.79,27.08378176]
[1744599117577,0.9999,133.81,133.78,33.12658176]
[1744599117754,0.9999,133.82,133.78,33.12658176]
[1744599118277,0.9999,133.79,133.78,0.063]
[1744599118476,46.73333062,133.79,133.78,0.063]
[1744599118654,47.15981533,133.79,133.78,0.063]
[1744599119350,38.4394795,133.79,133.78,0.063]
[1744599119782,26.05553357,133.79,133.78,0.063]
[1744599120080,44.4189795,133.79,133.78,0.063]
[1744599120763,20.07603357,133.79,133.78,0.063]
[1744599120957,44.27681793,133.79,133.78,0.063]
[1744599121158,38.4394795,133.74,133.73,0.063]
[1744599121378,19.07613357,133.73,133.72,0.063]
[1744599121660,38.4394795,133.73,133.72,0.063]
[1744599121851,44.4216795,133.73,133.72,0.063]
[1744599122291,0.9999,133.75,133.72,0.063]
[1744599122457,0.9999,133.78,133.74,18.36344593]
[1744599122653,0.9999,133.8,133.72,26.063]
[1744599122873,6.9772,133.84,133.79,18.36344593]
[1744599123058,0.9999,133.83,133.76,26.0]
[1744599123381,19.36334593,133.78,133.72,0.063]
[1744599123557,0.9999,133.8,133.74,18.36344593]
[1744599123761,25.77391043,133.73,133.72,0.063]
[1744599124067,1.42638471,133.71,133.7,0.063]
[1744599124273,19.78983064,133.71,133.7,0.063]
[1744599124881,0.9999,133.71,133.7,0.063]
[1744599125692,19.64954886,133.71,133.7,0.063]
[1744599125863,26.05903357,133.71,133.7,0.063]
[1744599126266,6.9829,133.71,133.7,0.063]
[1744599126466,0.9999,133.71,133.7,0.063]
[1744599126898,19.64954886,133.72,133.7,0.063]
[1744599127057,0.9999,133.76,133.71,27.14450064]
[1744599127388,0.9999,133.77,133.73,27.14450064]
[1744599127570,0.9999,133.77,133.74,27.14450064]
[1744599127811,0.9999,133.77,133.72,27.14450064]
[1744599128166,27.14450064,133.78,133.71,15.083]
[1744599128370,0.9999,133.79,133.73,27.14450064]
[1744599128579,0.9999,133.77,133.73,27.14450064]
[1744599128790,0.9999,133.83,133.76,27.14450064]
[1744599128992,27.14450064,133.82,133.77,27.14450064]
[1744599129289,0.9999,133.8,133.75,26.0]
[1744599129497,28.14440064,133.79,133.73,27.14450064]
[1744599129675,0.9999,133.79,133.74,27.14450064]
[1744599129867,0.9999,133.79,133.74,5.9817]
[1744599130193,6.9794,133.79,133.74,33.12620064]
[1744599130394,6.9794,133.79,133.7,0.063]
[1744599130395,0.9999,133.74,133.7,0.063]
[1744599130598,0.9999,133.72,133.7,0.063]
[1744599131095,0.9999,133.73,133.7,0.063]
[1744599131386,0.9999,133.72,133.7,0.063]
[1744599131591,28.14440064,133.73,133.7,6.0462]
[1744599131983,28.14440064,133.75,133.7,0.063]
[1744599132170,0.9999,133.74,133.7,0.063]
[1744599132371,28.14440064,133.74,133.7,0.063]
[1744599132594,28.14440064,133.73,133.7,0.063]
[1744599132773,28.14440064,133.75,133.7,0.063]
[1744599132978,0.9999,133.74,133.7,0.063]
[1744599133197,28.14440064,133.74,133.7,0.063]
[1744599133499,0.9999,133.82,133.76,26.0]
[1744599133690,0.9999,133.77,133.71,26.0]
[1744599133894,0.9999,133.76,133.7,9.163]
[1744599134074,0.9999,133.8,133.75,27.14450064]
[1744599134269,0.9999,133.79,133.76,27.14450064]
[1744599135231,28.14440064,133.83,133.78,27.14450064]
[1744599135369,28.14440064,133.83,133.76,27.14450064]
[1744599135370,28.14440064,133.81,133.76,27.14450064]
[1744599135575,0.9999,133.78,133.74,27.14450064]
[1744599135792,0.9999,133.78,133.75,27.14450064]
[1744599135994,0.14216157,133.9,133.77,27.14450064]
[1744599136171,0.14216157,133.9,133.82,27.14450064]
[1744599136378,7.7469,133.92,133.84,27.14450064]
[1744599136575,27.14450064,133.89,133.79,9.1]
[1744599136776,27.14450064,133.89,133.83,27.14450064]
[1744599137087,27.14450064,133.88,133.81,26.0]
[1744599137284,27.14450064,133.87,133.81,53.14450064]
[1744599137581,7.7469,133.92,133.83,27.14450064]
[1744599137897,27.14450064,133.89,133.85,5.9768]
[1744599138102,27.14450064,133.88,133.84,5.9771]
[1744599139078,27.14450064,133.88,133.83,5.9777]
[1744599139602,27.14450064,133.85,133.81,5.9786]
[1744599140592,45.7941495,133.82,133.77,5.9804]
[1744599140777,27.14450064,133.83,133.77,33.12490064]
[1744599141108,27.14450064,133.84,133.78,27.14450064]
[1744599141276,27.14450064,133.83,133.78,27.14450064]
[1744599142406,27.14450064,133.81,133.77,20.9314]
[1744599142610,18.64964886,133.83,133.77,5.9804]
[1744599142786,27.14450064,133.81,133.77,5.9804]
[1744599143096,27.14450064,133.84,133.78,27.14450064]
[1744599143678,27.14450064,133.84,133.79,27.14450064]
[1744599144186,9.1,133.9,133.77,20.9314]
[1744599144187,18.79181043,133.91,133.82,27.14450064]
[1744599144383,18.64964886,133.87,133.82,27.14450064]
[1744599144587,27.14450064,133.89,133.83,33.12220064]
[1744599144787,18.64964886,133.88,133.83,33.12220064]
[1744599145200,18.64964886,133.88,133.83,48.06650064]
[1744599145385,27.14450064,133.88,133.83,48.06650064]
[1744599145586,27.14450064,133.88,133.83,5.9777]
[1744599145909,27.14450064,133.87,133.83,5.9777]
[1744599146803,18.933972,133.91,133.84,27.14450064]
[1744599146995,45.93631107,133.91,133.85,27.14450064]
[1744599147200,27.14450064,133.88,133.83,5.9777]
[1744599147403,18.64964886,133.87,133.83,5.9777]
[1744599148207,27.14450064,133.9,133.85,27.14450064]
[1744599148580,27.14450064,133.9,133.85,5.9768]
[1744599149407,27.14450064,133.91,133.85,48.06330064]
[1744599149581,7.88906157,133.92,133.86,27.14450064]
[1744599149582,26.39654886,133.92,133.86,27.14450064]
[1744599149900,26.39654886,133.92,133.85,20.9188]
[1744599149901,27.17450064,133.94,133.88,27.14450064]
[1744599150103,27.14450064,133.91,133.86,27.14450064]
[1744599150306,27.14450064,133.9,133.85,5.9768]
[1744599150511,27.14450064,133.9,133.85,33.12130064]
[1744599150879,27.14450064,133.9,133.85,5.9768]
[1744599152333,27.14450064,133.88,133.83,5.9773]
[1744599152618,27.14450064,133.87,133.83,5.9773]
[1744599152805,42.07890064,133.92,133.85,27.14450064]
[1744599152806,44.933972,133.91,133.85,27.14450064]
[1744599152997,71.7941495,133.91,133.86,27.14450064]
[1744599153706,0.03,133.94,133.88,27.14450064]
[1744599154015,0.03,133.94,133.91,27.14450064]
[1744599154184,0.03,133.94,133.93,27.14450064]
[1744599154413,0.03,133.94,133.88,9.1]
[1744599154697,0.03,133.94,133.92,5.9737]
[1744599156788,0.03,133.93,133.92,5.9737]
[1744599156983,0.03,133.93,133.91,33.11850064]
[1744599157593,0.03,133.93,133.92,27.14450064]
[1744599158809,0.03,133.94,133.92,33.11820064]
[1744599159011,0.03,133.97,133.93,45.7941495]
[1744599159185,0.03,133.97,133.95,27.14450064]
[1744599159385,0.03,133.97,133.93,9.1]
[1744599159685,0.03,133.97,133.93,36.24450064]
[1744599160211,27.17450064,133.97,133.93,9.1]
[1744599160418,45.93631107,133.96,133.89,5.975]
[1744599160709,27.14450064,133.94,133.89,33.11950064]
[1744599160930,18.64964886,133.96,133.91,27.14450064]
[1744599161213,18.64964886,133.96,133.91,18.30879231]
[1744599161390,36.95844117,133.96,133.91,18.30879231]
[1744599161704,18.33879231,133.97,133.92,18.30879231]
[1744599161906,0.03,133.97,133.94,18.30879231]
[1744599162115,0.03,133.97,133.89,20.9126]
[1744599162407,0.03,133.97,133.93,18.30879231]
[1744599162607,0.03,133.97,133.94,18.30879231]
[1744599162822,0.03,133.97,133.9,19.07613357]
[1744599163001,0.03,133.97,133.94,5.9728]
[1744599163199,0.03,133.97,133.94,24.28159231]
[1744599164106,0.03,133.97,133.95,18.30879231]
[1744599164293,0.03,133.97,133.94,24.28159231]
[1744599165242,0.03,133.97,133.93,5.9732]
[1744599165514,0.03,133.97,133.93,24.28199231]
[1744599166187,0.03,133.97,133.88,26.0]
[1744599166188,18.30879231,133.95,133.88,26.0]